[Event "Late-Titled-Tuesday-Blitz-September-26-2023"]
[Site "Chess.com"]
[Date "2023.09.26"]
[Round "2"]
[White "The_Straightforward_Rook"]
[Black "Nor1lsk"]
[Result "1-0"]
[WhiteElo "2526"]
[BlackElo "2749"]
[TimeControl "180+1"]
[EndTime "14:16:58 PDT"]
[Termination "The_Straightforward_Rook won by resignation"]

1. d4 {[%clk 0:02:58.4]} 1... g6 {[%clk 0:02:59.8]} 2. e4 {[%clk 0:02:57.2]}
2... Bg7 {[%clk 0:03:00.4]} 3. Nf3 {[%clk 0:02:57.1]} 3... c6 {[%clk 0:03:00]}
4. Bd3 {[%clk 0:02:53.9]} 4... d5 {[%clk 0:03:00]} 5. e5 {[%clk 0:02:49.8]} 5...
Bg4 {[%clk 0:02:59.3]} 6. Nbd2 {[%clk 0:02:48.4]} 6... e6 {[%clk 0:02:59.1]} 7.
c3 {[%clk 0:02:47.1]} 7... Nd7 {[%clk 0:02:58.7]} 8. Nf1 {[%clk 0:02:45.9]} 8...
Ne7 {[%clk 0:02:58.4]} 9. Ne3 {[%clk 0:02:43.5]} 9... Bxf3 {[%clk 0:02:58.4]}
10. Qxf3 {[%clk 0:02:44.4]} 10... c5 {[%clk 0:02:58]} 11. h4 {[%clk 0:02:42.5]}
11... h5 {[%clk 0:02:57]} 12. Bd2 {[%clk 0:02:36.7]} 12... Nc6 {[%clk
0:02:55.4]} 13. Qf4 {[%clk 0:02:33.8]} 13... cxd4 {[%clk 0:02:44.9]} 14. cxd4
{[%clk 0:02:34.7]} 14... Bh6 {[%clk 0:02:45.2]} 15. Qg3 {[%clk 0:02:35]} 15...
Nxd4 {[%clk 0:02:33.3]} 16. Bb4 {[%clk 0:02:22]} 16... Qb6 {[%clk 0:02:13.6]}
17. a3 {[%clk 0:02:19.6]} 17... a5 {[%clk 0:02:13]} 18. Bd6 {[%clk 0:02:13]}
18... Qxb2 {[%clk 0:02:12.1]} 19. O-O {[%clk 0:02:13.7]} 19... Ne2+ {[%clk
0:02:11.7]} 20. Bxe2 {[%clk 0:02:13.3]} 20... Qxe2 {[%clk 0:02:12.6]} 21. Rfe1
{[%clk 0:02:07.3]} 21... Qd3 {[%clk 0:02:05.4]} 22. Red1 {[%clk 0:01:54.1]}
22... Qe4 {[%clk 0:02:03.9]} 23. Rab1 {[%clk 0:01:44.7]} 23... b6 {[%clk
0:02:03.4]} 24. Rbc1 {[%clk 0:01:41.7]} 24... Qf4 {[%clk 0:01:56.2]} 25. Qh3
{[%clk 0:01:36.7]} 25... Nxe5 {[%clk 0:01:55.1]} 26. Nxd5 {[%clk 0:01:24.6]}
26... Qxc1 {[%clk 0:00:26.5]} 27. Rxc1 {[%clk 0:01:11.6]} 27... Bxc1 {[%clk
0:00:25.5]} 28. Nc7+ {[%clk 0:01:09.3]} 28... Kd7 {[%clk 0:00:24.6]} 29. Bxe5
{[%clk 0:01:05.2]} 29... Rhc8 {[%clk 0:00:18]} 30. Qd3+ {[%clk 0:01:00.8]} 30...
Kc6 {[%clk 0:00:15.3]} 31. Nxa8 {[%clk 0:00:55.9]} 31... Kb7 {[%clk 0:00:14.1]}
32. Nc7 {[%clk 0:00:54.7]} 32... Bxa3 {[%clk 0:00:14.7]} 33. Qxa3 {[%clk
0:00:48.4]} 1-0

[Event "Late-Titled-Tuesday-Blitz-September-26-2023"]
[Site "Chess.com"]
[Date "2023.09.26"]
[Round "2"]
[White "aNaartjieZA"]
[Black "nitpicker"]
[Result "1-0"]
[WhiteElo "2597"]
[BlackElo "2247"]
[TimeControl "180+1"]
[EndTime "14:17:00 PDT"]
[Termination "aNaartjieZA won on time"]

1. e4 {[%clk 0:03:00.9]} 1... c5 {[%clk 0:02:56.6]} 2. Nf3 {[%clk 0:03:01]} 2...
d6 {[%clk 0:02:56.5]} 3. g3 {[%clk 0:03:01.3]} 3... Nc6 {[%clk 0:02:53.6]} 4.
Bg2 {[%clk 0:03:01.2]} 4... g6 {[%clk 0:02:51]} 5. O-O {[%clk 0:03:01.2]} 5...
Bg7 {[%clk 0:02:51.2]} 6. c3 {[%clk 0:03:01.4]} 6... e5 {[%clk 0:02:51.3]} 7. d3
{[%clk 0:03:01]} 7... Nge7 {[%clk 0:02:50.3]} 8. a3 {[%clk 0:03:01.4]} 8... O-O
{[%clk 0:02:44.6]} 9. b4 {[%clk 0:03:01.5]} 9... cxb4 {[%clk 0:02:18]} 10. axb4
{[%clk 0:03:01.4]} 10... b5 {[%clk 0:02:17.9]} 11. Nbd2 {[%clk 0:02:54.4]} 11...
h6 {[%clk 0:02:15.8]} 12. Nb3 {[%clk 0:02:53.4]} 12... f5 {[%clk 0:02:11.1]} 13.
exf5 {[%clk 0:02:52.9]} 13... gxf5 {[%clk 0:01:58.3]} 14. Nh4 {[%clk 0:02:52.6]}
14... Be6 {[%clk 0:01:51.2]} 15. Na5 {[%clk 0:02:51.5]} 15... Rc8 {[%clk
0:01:44.6]} 16. Bd2 {[%clk 0:02:42.8]} 16... d5 {[%clk 0:01:17.8]} 17. Nb7
{[%clk 0:02:40]} 17... Qc7 {[%clk 0:01:09.1]} 18. Nc5 {[%clk 0:02:39.5]} 18...
Bf7 {[%clk 0:01:09.8]} 19. Bh3 {[%clk 0:02:23.7]} 19... a5 {[%clk 0:00:36.3]}
20. Nxf5 {[%clk 0:02:20.6]} 20... Nxf5 {[%clk 0:00:36.9]} 21. Bxf5 {[%clk
0:02:20.5]} 21... Rce8 {[%clk 0:00:35.7]} 22. Qg4 {[%clk 0:02:17.1]} 22... Kh8
{[%clk 0:00:17.8]} 23. Qh3 {[%clk 0:02:14.8]} 23... Qd6 {[%clk 0:00:18.1]} 24.
Nb7 {[%clk 0:02:12]} 24... Qf6 {[%clk 0:00:17.3]} 25. Nxa5 {[%clk 0:02:11.9]}
25... Ne7 {[%clk 0:00:12.1]} 26. Bg4 {[%clk 0:02:10.3]} 26... Ng6 {[%clk
0:00:09.3]} 27. Bxh6 {[%clk 0:02:07.9]} 27... Kg8 {[%clk 0:00:08.4]} 28. Bd2
{[%clk 0:02:00.1]} 28... Be6 {[%clk 0:00:05.8]} 29. Nb7 {[%clk 0:01:56.3]} 29...
Bxg4 {[%clk 0:00:04.8]} 30. Qxg4 {[%clk 0:01:56.4]} 30... Qf7 {[%clk 0:00:03.8]}
31. Nd6 {[%clk 0:01:55.6]} 31... Qe6 {[%clk 0:00:02.7]} 32. Qxe6+ {[%clk
0:01:55]} 32... Rxe6 {[%clk 0:00:03]} 33. Nxb5 {[%clk 0:01:55.2]} 33... Rc6
{[%clk 0:00:02]} 34. Ra7 {[%clk 0:01:52]} 34... d4 {[%clk 0:00:02.4]} 35. c4
{[%clk 0:01:50.6]} 35... e4 {[%clk 0:00:02.9]} 36. dxe4 {[%clk 0:01:38.5]} 36...
Ne5 {[%clk 0:00:01.8]} 37. Nxd4 {[%clk 0:01:25.9]} 37... Rd6 {[%clk 0:00:01.3]}
38. Be3 {[%clk 0:01:22.7]} 38... Rxd4 {[%clk 0:00:01.3]} 39. Bxd4 {[%clk
0:01:22.9]} 39... Nf3+ {[%clk 0:00:02.2]} 40. Kg2 {[%clk 0:01:23.2]} 40... Bxd4
{[%clk 0:00:02.8]} 41. Rd7 {[%clk 0:01:21.3]} 41... Be5 {[%clk 0:00:02]} 42. c5
{[%clk 0:01:19.6]} 42... Ng5 {[%clk 0:00:01.8]} 43. f4 {[%clk 0:01:19.1]} 1-0

[Event "Late-Titled-Tuesday-Blitz-September-26-2023"]
[Site "Chess.com"]
[Date "2023.09.26"]
[Round "2"]
[White "Ermito2020"]
[Black "Oleksandr_Bortnyk"]
[Result "0-1"]
[WhiteElo "2617"]
[BlackElo "3009"]
[TimeControl "180+1"]
[EndTime "14:17:01 PDT"]
[Termination "Oleksandr_Bortnyk won by checkmate"]

1. e4 {[%clk 0:03:00.9]} 1... Nf6 {[%clk 0:02:59.1]} 2. e5 {[%clk 0:03:00.4]}
2... Nd5 {[%clk 0:02:59.5]} 3. d4 {[%clk 0:03:00.9]} 3... d6 {[%clk 0:03:00]} 4.
c4 {[%clk 0:03:01.5]} 4... Nb6 {[%clk 0:03:00.3]} 5. f4 {[%clk 0:03:02.2]} 5...
dxe5 {[%clk 0:03:00.9]} 6. fxe5 {[%clk 0:03:03.1]} 6... Bf5 {[%clk 0:03:01.6]}
7. Nc3 {[%clk 0:02:59.3]} 7... e6 {[%clk 0:03:02.2]} 8. Nf3 {[%clk 0:02:58.8]}
8... Bb4 {[%clk 0:03:02.9]} 9. Bd3 {[%clk 0:02:50.8]} 9... c5 {[%clk 0:03:02.9]}
10. Bxf5 {[%clk 0:02:36]} 10... cxd4 {[%clk 0:03:02.8]} 11. Bg5 {[%clk
0:02:10.9]} 11... Qd7 {[%clk 0:03:02.6]} 12. Qxd4 {[%clk 0:01:50.1]} 12... exf5
{[%clk 0:02:57.7]} 13. O-O-O {[%clk 0:01:46.7]} 13... Qxd4 {[%clk 0:02:53.9]}
14. Rxd4 {[%clk 0:01:47.6]} 14... Nc6 {[%clk 0:02:50.1]} 15. Rf4 {[%clk
0:01:47.3]} 15... Bxc3 {[%clk 0:02:47.1]} 16. bxc3 {[%clk 0:01:46.8]} 16... h6
{[%clk 0:02:47.9]} 17. Bh4 {[%clk 0:01:45.6]} 17... g5 {[%clk 0:02:47.8]} 18.
Nxg5 {[%clk 0:01:42.7]} 18... hxg5 {[%clk 0:02:46.3]} 19. Bxg5 {[%clk
0:01:43.6]} 19... Kf8 {[%clk 0:02:02.5]} 20. Rxf5 {[%clk 0:01:35.8]} 20... Re8
{[%clk 0:02:00.7]} 21. Rhf1 {[%clk 0:01:33.4]} 21... Rh7 {[%clk 0:01:48.9]} 22.
c5 {[%clk 0:00:48.3]} 22... Nd7 {[%clk 0:01:48.3]} 23. h4 {[%clk 0:00:40]} 23...
Nxc5 {[%clk 0:01:46.8]} 24. Be3 {[%clk 0:00:38.4]} 24... Nd3+ {[%clk 0:01:46.5]}
25. Kc2 {[%clk 0:00:38.3]} 25... Ndxe5 {[%clk 0:01:47]} 26. g3 {[%clk
0:00:38.2]} 26... Kg8 {[%clk 0:01:34.7]} 27. Bc5 {[%clk 0:00:36.8]} 27... Rg7
{[%clk 0:01:33.7]} 28. Re1 {[%clk 0:00:29.2]} 28... Re6 {[%clk 0:01:03.3]} 29.
Bxa7 {[%clk 0:00:28.9]} 29... Rxg3 {[%clk 0:00:58.7]} 30. Bf2 {[%clk 0:00:28]}
30... Rg2 {[%clk 0:00:57.2]} 31. Kb3 {[%clk 0:00:27.7]} 31... Nd3 {[%clk
0:00:57]} 32. Rf1 {[%clk 0:00:24.9]} 32... Re2 {[%clk 0:00:52]} 33. Bd4 {[%clk
0:00:16.1]} 33... Rxa2 {[%clk 0:00:47.6]} 34. Rxf7 {[%clk 0:00:15.2]} 34... Na5#
{[%clk 0:00:47.5]} 0-1

[Event "Late-Titled-Tuesday-Blitz-September-26-2023"]
[Site "Chess.com"]
[Date "2023.09.26"]
[Round "2"]
[White "QuintilianoR"]
[Black "Dubs123"]
[Result "1-0"]
[WhiteElo "2666"]
[BlackElo "2358"]
[TimeControl "180+1"]
[EndTime "14:17:03 PDT"]
[Termination "QuintilianoR won by resignation"]

1. Nf3 {[%clk 0:02:59.2]} 1... d5 {[%clk 0:02:58.6]} 2. e3 {[%clk 0:02:58.1]}
2... Nf6 {[%clk 0:02:54.8]} 3. c4 {[%clk 0:02:57.9]} 3... e6 {[%clk 0:02:48.6]}
4. b3 {[%clk 0:02:57.7]} 4... Be7 {[%clk 0:02:46.5]} 5. Bb2 {[%clk 0:02:57.8]}
5... c5 {[%clk 0:02:46.2]} 6. Nc3 {[%clk 0:02:39.4]} 6... Nc6 {[%clk 0:02:44.9]}
7. cxd5 {[%clk 0:02:37.1]} 7... exd5 {[%clk 0:02:40.1]} 8. d4 {[%clk 0:02:36.6]}
8... Bg4 {[%clk 0:02:16.4]} 9. Be2 {[%clk 0:02:34.3]} 9... Bxf3 {[%clk
0:02:06.9]} 10. Bxf3 {[%clk 0:02:34.2]} 10... cxd4 {[%clk 0:02:07]} 11. exd4
{[%clk 0:02:35.1]} 11... O-O {[%clk 0:02:00.5]} 12. O-O {[%clk 0:02:34.6]} 12...
Re8 {[%clk 0:01:55.4]} 13. a3 {[%clk 0:02:31.9]} 13... Qd7 {[%clk 0:01:48]} 14.
b4 {[%clk 0:02:26]} 14... Rad8 {[%clk 0:01:42.5]} 15. Qd3 {[%clk 0:02:24.9]}
15... Bf8 {[%clk 0:01:32.9]} 16. g3 {[%clk 0:02:23.4]} 16... g6 {[%clk
0:01:32.6]} 17. Na4 {[%clk 0:02:01.2]} 17... b6 {[%clk 0:01:24]} 18. Nc3 {[%clk
0:01:45.7]} 18... Bg7 {[%clk 0:01:22.3]} 19. Bd1 {[%clk 0:01:17.3]} 19... Ne4
{[%clk 0:01:14]} 20. Ba4 {[%clk 0:01:15.9]} 20... Qb7 {[%clk 0:00:32.5]} 21.
Rac1 {[%clk 0:01:08.1]} 21... Re6 {[%clk 0:00:19.8]} 22. Nxd5 {[%clk 0:00:58.1]}
22... Rxd5 {[%clk 0:00:17.6]} 23. Bxc6 {[%clk 0:00:57.4]} 23... Rxc6 {[%clk
0:00:14.3]} 24. Qxe4 {[%clk 0:00:57.6]} 24... Rxc1 {[%clk 0:00:07.8]} 25. Qe8+
{[%clk 0:00:57.3]} 25... Bf8 {[%clk 0:00:08.2]} 26. Rxc1 {[%clk 0:00:57.5]}
26... Qe7 {[%clk 0:00:07.2]} 27. Rc8 {[%clk 0:00:56.1]} 27... Qxe8 {[%clk
0:00:06.5]} 28. Rxe8 {[%clk 0:00:56.5]} 28... Kg7 {[%clk 0:00:07.4]} 29. Ra8
{[%clk 0:00:55.8]} 29... Rd7 {[%clk 0:00:07]} 30. d5+ {[%clk 0:00:55]} 30... Kg8
{[%clk 0:00:04.5]} 31. Bf6 {[%clk 0:00:49.7]} 31... Rxd5 {[%clk 0:00:01.9]} 32.
Be7 {[%clk 0:00:49.1]} 32... Rd1+ {[%clk 0:00:02.8]} 33. Kg2 {[%clk 0:00:49]}
33... Kg7 {[%clk 0:00:03.7]} 34. Bxf8+ {[%clk 0:00:49.2]} 1-0

[Event "Late-Titled-Tuesday-Blitz-September-26-2023"]
[Site "Chess.com"]
[Date "2023.09.26"]
[Round "2"]
[White "acertijo08"]
[Black "Arteler"]
[Result "1-0"]
[WhiteElo "2373"]
[BlackElo "2565"]
[TimeControl "180+1"]
[EndTime "14:17:03 PDT"]
[Termination "acertijo08 won by resignation"]

1. e4 {[%clk 0:03:00.9]} 1... e6 {[%clk 0:03:00]} 2. d4 {[%clk 0:02:59.7]} 2...
d5 {[%clk 0:03:00.6]} 3. Nc3 {[%clk 0:03:00]} 3... Bb4 {[%clk 0:03:00.3]} 4. e5
{[%clk 0:03:00.1]} 4... c5 {[%clk 0:03:00.6]} 5. a3 {[%clk 0:03:00.1]} 5... Ba5
{[%clk 0:03:00.7]} 6. b4 {[%clk 0:02:59.5]} 6... cxd4 {[%clk 0:03:01]} 7. Qg4
{[%clk 0:02:56.5]} 7... Ne7 {[%clk 0:02:55.2]} 8. Qxg7 {[%clk 0:02:53.6]} 8...
Rg8 {[%clk 0:02:55.2]} 9. Qxh7 {[%clk 0:02:54.1]} 9... Bc7 {[%clk 0:02:51]} 10.
Nb5 {[%clk 0:02:49.7]} 10... Bxe5 {[%clk 0:02:50.5]} 11. Nf3 {[%clk 0:02:49.9]}
11... Nbc6 {[%clk 0:02:33.3]} 12. Bg5 {[%clk 0:02:31.1]} 12... Rh8 {[%clk
0:01:54.8]} 13. Qd3 {[%clk 0:02:28.4]} 13... Bg7 {[%clk 0:01:55.2]} 14. Nbxd4
{[%clk 0:02:04.3]} 14... e5 {[%clk 0:01:52.2]} 15. Nxc6 {[%clk 0:02:03]} 15...
bxc6 {[%clk 0:01:53]} 16. Qd2 {[%clk 0:01:44]} 16... f6 {[%clk 0:01:50.7]} 17.
Be3 {[%clk 0:01:00]} 17... d4 {[%clk 0:01:45.6]} 18. Nxd4 {[%clk 0:00:46.2]}
18... exd4 {[%clk 0:01:46.5]} 19. Bxd4 {[%clk 0:00:46.7]} 19... Nf5 {[%clk
0:01:33.4]} 20. c3 {[%clk 0:00:40.9]} 20... Nxd4 {[%clk 0:01:32.9]} 21. cxd4
{[%clk 0:00:41.2]} 21... Qe7+ {[%clk 0:01:31.2]} 22. Be2 {[%clk 0:00:40.5]}
22... Bh6 {[%clk 0:01:31.6]} 23. Qc2 {[%clk 0:00:39.2]} 23... Bd7 {[%clk
0:01:20.7]} 24. O-O {[%clk 0:00:37.1]} 24... Kf8 {[%clk 0:01:08.4]} 25. Rfe1
{[%clk 0:00:33.4]} 25... Qh7 {[%clk 0:01:03.9]} 26. Bd3 {[%clk 0:00:33]} 26...
f5 {[%clk 0:01:03]} 27. Qc5+ {[%clk 0:00:29.9]} 27... Kg8 {[%clk 0:00:22.5]} 28.
Bc4+ {[%clk 0:00:30.1]} 28... Qf7 {[%clk 0:00:22.5]} 29. Bxf7+ {[%clk
0:00:27.7]} 29... Kxf7 {[%clk 0:00:23.4]} 30. Re7+ {[%clk 0:00:26.4]} 30... Kf6
{[%clk 0:00:23.2]} 31. Qe5+ {[%clk 0:00:25.8]} 1-0

[Event "Late-Titled-Tuesday-Blitz-September-26-2023"]
[Site "Chess.com"]
[Date "2023.09.26"]
[Round "2"]
[White "rdarruda"]
[Black "Sacbutt"]
[Result "1-0"]
[WhiteElo "2486"]
[BlackElo "2276"]
[TimeControl "180+1"]
[EndTime "14:17:03 PDT"]
[Termination "rdarruda won by resignation"]

1. e4 {[%clk 0:02:32]} 1... e5 {[%clk 0:02:59.5]} 2. Nf3 {[%clk 0:02:31.2]} 2...
Nc6 {[%clk 0:03:00.1]} 3. Nc3 {[%clk 0:02:30.8]} 3... Nf6 {[%clk 0:02:59.7]} 4.
Bc4 {[%clk 0:02:31.3]} 4... Bb4 {[%clk 0:02:57.7]} 5. d3 {[%clk 0:02:30.3]} 5...
h6 {[%clk 0:02:55.3]} 6. O-O {[%clk 0:02:27.8]} 6... d6 {[%clk 0:02:54.8]} 7.
Nd5 {[%clk 0:02:26.2]} 7... Nxd5 {[%clk 0:02:48.8]} 8. Bxd5 {[%clk 0:02:27.1]}
8... Bg4 {[%clk 0:02:36.6]} 9. h3 {[%clk 0:02:26.1]} 9... Bxf3 {[%clk 0:02:30]}
10. Qxf3 {[%clk 0:02:27]} 10... O-O {[%clk 0:02:28.8]} 11. c3 {[%clk 0:02:26.5]}
11... Bc5 {[%clk 0:02:26.9]} 12. Be3 {[%clk 0:02:26.1]} 12... Bb6 {[%clk
0:02:23.4]} 13. Rad1 {[%clk 0:02:24.5]} 13... Rb8 {[%clk 0:02:21.5]} 14. Qg3
{[%clk 0:02:22]} 14... Kh8 {[%clk 0:02:20.8]} 15. d4 {[%clk 0:02:22.4]} 15...
exd4 {[%clk 0:02:11.5]} 16. cxd4 {[%clk 0:02:23.3]} 16... Ne7 {[%clk 0:02:05.8]}
17. Bb3 {[%clk 0:02:22.5]} 17... d5 {[%clk 0:02:01]} 18. exd5 {[%clk 0:02:17.3]}
18... Nxd5 {[%clk 0:01:57.5]} 19. Bc1 {[%clk 0:02:06]} 19... c6 {[%clk
0:01:53.4]} 20. Rfe1 {[%clk 0:02:05.6]} 20... Qf6 {[%clk 0:01:50.2]} 21. Re4
{[%clk 0:02:03.7]} 21... Rbe8 {[%clk 0:01:47.9]} 22. Rh4 {[%clk 0:01:53.5]}
22... Bd8 {[%clk 0:01:34.5]} 23. Rh5 {[%clk 0:01:50.4]} 23... Bc7 {[%clk
0:01:15.3]} 24. Qg4 {[%clk 0:01:49.1]} 24... Nf4 {[%clk 0:01:07.8]} 25. Rf5
{[%clk 0:01:46.2]} 25... Ne2+ {[%clk 0:01:04.5]} 26. Kh1 {[%clk 0:01:43.9]}
26... Qd6 {[%clk 0:01:00.5]} 27. g3 {[%clk 0:01:36.2]} 27... Nxc1 {[%clk
0:00:54.2]} 28. Rxc1 {[%clk 0:01:37.1]} 28... Bb6 {[%clk 0:00:51.3]} 29. Rd1
{[%clk 0:01:31.9]} 29... Re7 {[%clk 0:00:49]} 30. Kg2 {[%clk 0:01:22.5]} 30...
Qd7 {[%clk 0:00:43.4]} 31. Qf3 {[%clk 0:01:18.3]} 31... Bxd4 {[%clk 0:00:35.9]}
32. Qf4 {[%clk 0:00:46.3]} 32... c5 {[%clk 0:00:34.3]} 33. Rxc5 {[%clk
0:00:44.4]} 33... Bxc5 {[%clk 0:00:26.5]} 34. Rxd7 {[%clk 0:00:44.8]} 34... Rxd7
{[%clk 0:00:27]} 35. Bc2 {[%clk 0:00:42.5]} 35... Rd5 {[%clk 0:00:15.1]} 36. Qe4
{[%clk 0:00:39.6]} 1-0

[Event "Late-Titled-Tuesday-Blitz-September-26-2023"]
[Site "Chess.com"]
[Date "2023.09.26"]
[Round "2"]
[White "GaiozNigalidze"]
[Black "topin8"]
[Result "1-0"]
[WhiteElo "2719"]
[BlackElo "2437"]
[TimeControl "180+1"]
[EndTime "14:17:06 PDT"]
[Termination "GaiozNigalidze won on time"]

1. d4 {[%clk 0:03:00.9]} 1... Nf6 {[%clk 0:02:00.7]} 2. c4 {[%clk 0:03:00.8]}
2... c5 {[%clk 0:02:00.5]} 3. d5 {[%clk 0:02:59.7]} 3... d6 {[%clk 0:02:00.9]}
4. Nc3 {[%clk 0:02:59.1]} 4... g6 {[%clk 0:02:01.4]} 5. e4 {[%clk 0:02:56.3]}
5... Bg7 {[%clk 0:02:01.8]} 6. h3 {[%clk 0:02:56.4]} 6... O-O {[%clk 0:02:02.4]}
7. Nf3 {[%clk 0:02:56.5]} 7... e6 {[%clk 0:02:03.1]} 8. Bd3 {[%clk 0:02:55]}
8... exd5 {[%clk 0:02:04]} 9. exd5 {[%clk 0:02:55.1]} 9... Re8+ {[%clk
0:02:04.2]} 10. Be3 {[%clk 0:02:55.2]} 10... Rxe3+ {[%clk 0:02:04.5]} 11. fxe3
{[%clk 0:02:55]} 11... Qe7 {[%clk 0:02:05.1]} 12. O-O {[%clk 0:02:47.9]} 12...
Nbd7 {[%clk 0:01:35.6]} 13. Qe2 {[%clk 0:02:43.7]} 13... Nh5 {[%clk 0:01:17.3]}
14. Qf2 {[%clk 0:02:36.4]} 14... Ne5 {[%clk 0:01:16.4]} 15. Be2 {[%clk
0:02:22.9]} 15... Nf6 {[%clk 0:00:34.8]} 16. Nxe5 {[%clk 0:02:06.5]} 16... Qxe5
{[%clk 0:00:34.7]} 17. Qf4 {[%clk 0:02:04.5]} 17... Qe7 {[%clk 0:00:31.9]} 18.
Rae1 {[%clk 0:01:40.9]} 18... Nd7 {[%clk 0:00:18.1]} 19. Ne4 {[%clk 0:01:29.5]}
19... Be5 {[%clk 0:00:14.4]} 20. Qg5 {[%clk 0:01:19.7]} 20... Qxg5 {[%clk
0:00:14.7]} 21. Nxg5 {[%clk 0:01:20.4]} 21... Nf6 {[%clk 0:00:14]} 22. g4 {[%clk
0:00:57.7]} 22... Bd7 {[%clk 0:00:07.7]} 23. Rb1 {[%clk 0:00:54.6]} 23... a5
{[%clk 0:00:06]} 24. Nf3 {[%clk 0:00:53.3]} 24... Ne4 {[%clk 0:00:02.5]} 25.
Nxe5 {[%clk 0:00:50]} 25... dxe5 {[%clk 0:00:03.4]} 26. Rbd1 {[%clk 0:00:42.2]}
26... Kg7 {[%clk 0:00:01.1]} 27. d6 {[%clk 0:00:38.8]} 1-0

[Event "Late-Titled-Tuesday-Blitz-September-26-2023"]
[Site "Chess.com"]
[Date "2023.09.26"]
[Round "2"]
[White "Smiechu"]
[Black "BahadirOzen"]
[Result "0-1"]
[WhiteElo "2527"]
[BlackElo "2806"]
[TimeControl "180+1"]
[EndTime "14:17:10 PDT"]
[Termination "BahadirOzen won on time"]

1. e4 {[%clk 0:03:00.9]} 1... g6 {[%clk 0:02:58.5]} 2. d4 {[%clk 0:03:00.6]}
2... Bg7 {[%clk 0:02:58.4]} 3. Nc3 {[%clk 0:03:01.3]} 3... a6 {[%clk 0:02:58.7]}
4. Be3 {[%clk 0:03:01.6]} 4... d6 {[%clk 0:02:58.1]} 5. Qd2 {[%clk 0:03:00.4]}
5... b5 {[%clk 0:02:58.1]} 6. h4 {[%clk 0:02:59.5]} 6... h6 {[%clk 0:02:57.2]}
7. h5 {[%clk 0:02:52.5]} 7... g5 {[%clk 0:02:56.8]} 8. f4 {[%clk 0:02:52.6]}
8... gxf4 {[%clk 0:02:50.4]} 9. Bxf4 {[%clk 0:02:52.5]} 9... Nd7 {[%clk
0:02:51.1]} 10. Nf3 {[%clk 0:02:49.3]} 10... Ngf6 {[%clk 0:02:32.9]} 11. e5
{[%clk 0:02:42.4]} 11... b4 {[%clk 0:02:32.7]} 12. exf6 {[%clk 0:02:26.2]} 12...
bxc3 {[%clk 0:02:32.3]} 13. Qxc3 {[%clk 0:02:14.2]} 13... Nxf6 {[%clk
0:02:30.3]} 14. Bc4 {[%clk 0:02:10]} 14... Bg4 {[%clk 0:02:24.1]} 15. O-O-O
{[%clk 0:01:56.6]} 15... Bxh5 {[%clk 0:02:17.5]} 16. Rde1 {[%clk 0:01:07.9]}
16... Kf8 {[%clk 0:01:58.5]} 17. Nh4 {[%clk 0:01:01.6]} 17... Qd7 {[%clk
0:01:49.6]} 18. Qd3 {[%clk 0:00:32.4]} 18... Rb8 {[%clk 0:01:42.3]} 19. Nf5
{[%clk 0:00:28.8]} 19... Bg6 {[%clk 0:01:42.7]} 20. g4 {[%clk 0:00:21.1]} 20...
Nxg4 {[%clk 0:01:43]} 21. Qf3 {[%clk 0:00:03.4]} 21... Bxf5 {[%clk 0:01:38.4]}
22. Rhf1 {[%clk 0:00:03.6]} 22... e6 {[%clk 0:01:29.3]} 23. Bg3 {[%clk
0:00:03.5]} 23... Bxd4 {[%clk 0:01:12.5]} 24. c3 {[%clk 0:00:02.6]} 24... Bf6
{[%clk 0:01:13.2]} 25. Bd3 {[%clk 0:00:03]} 25... Bg5+ {[%clk 0:01:06.9]} 26.
Kb1 {[%clk 0:00:02.8]} 26... Bxd3+ {[%clk 0:01:01.6]} 27. Qxd3 {[%clk
0:00:02.9]} 27... Qb5 {[%clk 0:01:02.5]} 28. Qc2 {[%clk 0:00:02.7]} 28... Ne3
{[%clk 0:00:50.8]} 29. Rxe3 {[%clk 0:00:02.2]} 29... Qxf1+ {[%clk 0:00:47.6]}
30. Re1 {[%clk 0:00:02.1]} 30... Qf5 {[%clk 0:00:48.3]} 31. Re4 {[%clk
0:00:01.5]} 31... d5 {[%clk 0:00:45.6]} 0-1

[Event "Late-Titled-Tuesday-Blitz-September-26-2023"]
[Site "Chess.com"]
[Date "2023.09.26"]
[Round "2"]
[White "WindWhistler11"]
[Black "CURRUTACO59"]
[Result "1-0"]
[WhiteElo "2468"]
[BlackElo "2245"]
[TimeControl "180+1"]
[EndTime "14:17:15 PDT"]
[Termination "WindWhistler11 won on time"]

1. Nf3 {[%clk 0:03:00.9]} 1... Nf6 {[%clk 0:02:57.9]} 2. g3 {[%clk 0:03:00.2]}
2... b6 {[%clk 0:02:57.1]} 3. d3 {[%clk 0:03:00.1]} 3... d5 {[%clk 0:02:55.8]}
4. Nbd2 {[%clk 0:03:00]} 4... Bb7 {[%clk 0:02:55.8]} 5. Bg2 {[%clk 0:03:00.8]}
5... e6 {[%clk 0:02:55.6]} 6. e4 {[%clk 0:03:01.2]} 6... dxe4 {[%clk 0:02:55]}
7. Ng5 {[%clk 0:03:01.8]} 7... c5 {[%clk 0:02:54.2]} 8. O-O {[%clk 0:03:00.6]}
8... Be7 {[%clk 0:02:53.6]} 9. Ngxe4 {[%clk 0:03:00.8]} 9... Qc7 {[%clk
0:02:49.9]} 10. Qf3 {[%clk 0:02:55.5]} 10... Nc6 {[%clk 0:02:47.5]} 11. Nc4
{[%clk 0:02:53.4]} 11... O-O {[%clk 0:02:43.2]} 12. Bf4 {[%clk 0:02:40.6]} 12...
e5 {[%clk 0:02:03.5]} 13. Nxe5 {[%clk 0:02:33.2]} 13... Nxe5 {[%clk 0:02:00.1]}
14. Nxf6+ {[%clk 0:02:32.1]} 14... Bxf6 {[%clk 0:01:57.3]} 15. Qxb7 {[%clk
0:02:29.5]} 15... Qxb7 {[%clk 0:01:48.8]} 16. Bxb7 {[%clk 0:02:29]} 16... Rad8
{[%clk 0:01:41.2]} 17. Rad1 {[%clk 0:02:16.2]} 17... Ng6 {[%clk 0:01:27.4]} 18.
Bc1 {[%clk 0:02:15.5]} 18... Rd7 {[%clk 0:01:26]} 19. Bc6 {[%clk 0:02:14.3]}
19... Rd6 {[%clk 0:01:25]} 20. Bg2 {[%clk 0:02:10.8]} 20... Rfd8 {[%clk
0:01:24.7]} 21. b3 {[%clk 0:02:05.2]} 21... b5 {[%clk 0:01:24.5]} 22. Be3 {[%clk
0:02:03.2]} 22... c4 {[%clk 0:01:21.1]} 23. Bc5 {[%clk 0:02:01.5]} 23... R6d7
{[%clk 0:01:12.3]} 24. b4 {[%clk 0:01:44]} 24... cxd3 {[%clk 0:01:10.9]} 25. Bc6
{[%clk 0:01:44.6]} 25... Rc7 {[%clk 0:01:02.4]} 26. Bxb5 {[%clk 0:01:42.2]}
26... dxc2 {[%clk 0:00:59.3]} 27. Rxd8+ {[%clk 0:01:29.3]} 27... Bxd8 {[%clk
0:01:00.2]} 28. Rc1 {[%clk 0:01:28.6]} 28... Be7 {[%clk 0:00:41.6]} 29. Rxc2
{[%clk 0:01:21.1]} 29... Ne5 {[%clk 0:00:41.5]} 30. Kg2 {[%clk 0:01:12.1]} 30...
a5 {[%clk 0:00:32.7]} 31. Rd2 {[%clk 0:01:03.6]} 31... Bxc5 {[%clk 0:00:14.6]}
32. bxc5 {[%clk 0:01:02.5]} 32... g6 {[%clk 0:00:14.7]} 33. Rd5 {[%clk
0:01:01.8]} 33... f6 {[%clk 0:00:11.9]} 34. f4 {[%clk 0:01:01.3]} 34... Ng4
{[%clk 0:00:12]} 35. Kf3 {[%clk 0:01:00.2]} 35... h5 {[%clk 0:00:11]} 36. h3
{[%clk 0:00:59.5]} 36... Nh6 {[%clk 0:00:11]} 37. c6 {[%clk 0:00:53.8]} 37...
Nf5 {[%clk 0:00:10.6]} 38. Rd7 {[%clk 0:00:53.2]} 38... Rc8 {[%clk 0:00:01.2]}
39. c7 {[%clk 0:00:53.6]} 1-0